bitfinex/quotes_ETHUSD_20250324
["timestamp","ask_amount","ask_price","bid_price","bid_amount"]
[1742808014896,3.795,2094.2,2094.0,0.44212599]
[1742808016108,8.6179795,2094.2,2094.0,0.44212599]
[1742808016286,8.6179795,2094.2,2093.7,4.7762]
[1742808016287,1.46591745,2094.1,2093.9,0.44212599]
[1742808016590,8.57015,2094.2,2093.9,0.44212599]
[1742808016757,3.795,2094.2,2093.9,0.44212599]
[1742808017797,3.795,2094.2,2093.9,5.21785599]
[1742808017798,3.0,2094.2,2093.9,5.21785599]
[1742808018094,3.0,2094.2,2093.9,0.44212599]
[1742808020494,3.0,2094.2,2093.9,5.05112599]
[1742808020697,3.0,2094.2,2094.0,0.44212599]
[1742808021567,7.77532,2094.1,2094.0,0.44212599]
[1742808023297,7.77532,2094.1,2093.9,0.44212599]
[1742808025072,3.0,2094.1,2093.9,5.76892599]
[1742808025268,3.0,2094.1,2093.9,6.80671859]
[1742808025472,3.0,2094.1,2093.9,6.80686859]
[1742808025673,3.0,2094.1,2094.0,0.44212599]
[1742808027106,6.041195,2094.3,2094.0,0.44212599]
[1742808027306,3.0,2094.2,2094.0,0.44212599]
[1742808028308,6.856795,2094.6,2094.1,4.77532]
[1742808028514,6.856795,2095.1,2094.7,4.77386]
[1742808028877,3.0,2095.0,2094.7,4.77386]
[1742808029085,3.0,2095.0,2094.6,9.38315]
[1742808029408,3.0,2095.0,2094.6,9.38307]
[1742808029611,3.0,2095.0,2094.6,14.15711]
[1742808029777,3.0,2095.0,2094.6,15.627941]
[1742808029978,3.0,2095.0,2094.7,4.77394]
[1742808030375,3.0,2095.0,2094.7,5.21606599]
[1742808030783,3.0,2095.0,2094.7,0.44212599]
[1742808031524,3.0,2095.0,2094.7,5.21605599]
[1742808031680,3.0,2095.0,2094.8,0.24354276]
[1742808031881,3.0,2095.0,2094.7,5.21605599]
[1742808032180,3.0,2095.0,2094.8,0.24567409]
[1742808032380,3.0,2095.0,2094.7,4.77393]
[1742808032603,3.0,2095.0,2094.8,0.24567409]
[1742808032799,7.77349,2094.9,2094.8,0.24567409]
[1742808033009,4.77395,2094.7,2094.6,0.44212599]
[1742808033211,7.77395,2094.7,2094.6,0.68780008]
[1742808033815,7.77395,2094.7,2094.6,0.24567409]
[1742808034033,3.0,2094.6,2094.4,4.608]
[1742808034218,3.0,2094.6,2094.5,0.24567409]
[1742808034597,10.815005,2094.8,2094.5,0.24567409]
[1742808034598,3.0,2094.7,2094.5,0.24567409]
[1742808035818,7.77399,2094.7,2094.5,0.24567409]
[1742808038316,7.8218195,2094.7,2094.5,0.24567409]
[1742808038516,7.77399,2094.7,2094.5,0.24567409]
[1742808038813,7.8218195,2094.7,2094.5,0.24567409]
[1742808039119,7.77399,2094.7,2094.5,0.24267409]
[1742808039314,12.54813,2094.7,2094.5,0.24267409]
[1742808039620,4.77418,2094.6,2094.5,0.24267409]
[1742808039998,8.58328,2094.6,2094.5,0.24267409]
[1742808040193,4.77453,2094.5,2094.3,0.96416532]
[1742808040399,7.77453,2094.5,2094.4,0.24379326]
[1742808040603,7.77453,2094.5,2094.2,5.04912599]
[1742808040807,7.77453,2094.5,2094.3,0.24379326]
[1742808041000,12.54915,2094.5,2094.1,0.99332599]
[1742808041203,12.54915,2094.5,2094.2,0.24379326]
[1742808041393,14.12669695,2094.5,2094.2,0.24379326]
[1742808042221,9.35207695,2094.5,2094.2,0.24379326]
[1742808043220,14.12663695,2094.5,2094.2,0.24379326]
[1742808043619,9.35207695,2094.5,2094.2,0.24379326]
[1742808043824,14.12662695,2094.5,2094.2,0.24379326]
[1742808044420,7.77486,2094.3,2094.2,0.24379326]
[1742808044622,7.77526,2094.2,2094.0,0.44212599]
[1742808044916,7.77526,2094.2,2094.1,0.20584463]
[1742808045719,4.77533,2094.1,2093.8,4.607]
[1742808046791,4.77533,2094.1,2093.9,0.20584463]
[1742808046994,9.5508,2094.1,2093.9,0.20584463]
[1742808047305,5.60634,2094.0,2093.9,0.20584463]
[1742808047712,5.60634,2094.0,2093.7,5.04912599]
[1742808048020,5.60634,2094.0,2093.7,4.607]
[1742808048224,5.60634,2094.0,2093.8,0.20713801]
[1742808048521,5.60634,2094.0,2093.7,4.607]
[1742808048722,5.60634,2094.0,2093.9,0.20713801]
[1742808048893,5.60634,2094.0,2093.7,4.607]
[1742808049094,5.60634,2094.0,2093.8,0.20713801]
[1742808049290,5.60634,2094.0,2093.7,4.607]
[1742808049492,5.60634,2094.0,2093.8,0.20713801]
[1742808049724,5.60634,2094.0,2093.7,4.607]
[1742808050019,8.60634,2094.0,2093.7,4.607]
[1742808050223,8.60634,2094.0,2093.8,0.20713801]
[1742808050518,8.60634,2094.0,2093.7,4.607]
[1742808050718,8.60634,2094.0,2093.9,0.20713801]
[1742808050909,8.60634,2094.0,2093.7,4.607]
[1742808051109,8.60634,2094.0,2093.9,0.20713801]
[1742808051309,8.60634,2094.0,2093.7,4.607]
[1742808051491,8.60634,2094.0,2093.9,0.20713801]
[1742808051692,8.60634,2094.0,2093.7,4.607]
[1742808051892,8.60634,2094.0,2093.8,0.20713801]
[1742808052092,8.60634,2094.0,2093.7,4.607]
[1742808052293,8.60634,2094.0,2093.8,0.20763877]
[1742808052490,8.60634,2094.0,2093.7,4.607]
[1742808052713,8.60634,2094.0,2093.8,0.20763877]
[1742808053036,8.60634,2094.0,2093.7,4.607]
[1742808053203,8.60634,2094.0,2093.8,0.20763877]
[1742808053404,8.60634,2094.0,2093.7,4.607]
[1742808053614,8.60634,2094.0,2093.8,0.20763877]
[1742808053912,8.60634,2094.0,2093.7,4.607]
[1742808054133,8.60634,2094.0,2093.9,0.20763877]
[1742808054334,8.60634,2094.0,2093.7,4.607]
[1742808054535,8.60634,2094.0,2093.9,0.20763877]
[1742808054730,9.944507,2094.0,2093.7,4.607]
[1742808054938,8.60634,2094.0,2093.9,0.20926597]
[1742808055250,7.7758,2093.9,2093.6,0.44212599]
[1742808055535,4.77609,2093.8,2093.6,0.44212599]
[1742808055735,8.57013,2093.7,2093.6,0.44212599]
[1742808055908,8.6179595,2093.7,2093.6,0.44212599]
[1742808056110,10.99123345,2093.7,2093.6,0.44212599]
[1742808056304,17.03242845,2093.7,2093.6,0.44212599]
[1742808057734,4.77691,2093.4,2093.3,4.608]
[1742808057946,7.77691,2093.4,2093.3,4.608]
[1742808058125,3.0,2093.3,2093.0,0.44212599]
[1742808058335,4.77747,2093.2,2093.0,0.44212599]
[1742808059841,4.77747,2093.2,2092.9,31.5562]
[1742808060038,4.77747,2093.2,2092.9,36.268476]
[1742808061151,4.77747,2093.2,2093.0,0.20930771]
[1742808061650,4.77731,2093.3,2093.0,0.20930771]
[1742808062024,4.77738,2093.2,2093.0,0.20930771]
[1742808062951,9.55491,2093.2,2093.0,0.20930771]
[1742808063252,4.77738,2093.2,2093.0,0.20930771]
[1742808065922,3.0,2093.2,2093.0,0.20930771]
[1742808066122,3.0,2093.3,2093.0,9.13741548]
[1742808066322,3.0,2093.3,2093.0,4.35975548]
[1742808066539,6.041195,2093.4,2093.1,4.77749]
[1742808066750,6.041195,2093.4,2093.1,4.77747]
[1742808066942,6.041195,2093.4,2093.2,0.21227172]
[1742808067348,6.041195,2093.4,2093.0,10.10667]
[1742808067522,9.041195,2093.4,2093.3,0.21227172]
[1742808067851,9.795195,2093.4,2093.3,0.21227172]
[1742808068054,9.041195,2093.4,2093.2,4.77735]
[1742808068256,9.041195,2093.4,2093.3,0.21227172]
[1742808068454,6.041195,2093.4,2093.2,4.77735]
[1742808068757,6.041195,2093.4,2093.3,0.21227172]
[1742808069143,3.0,2093.6,2093.3,5.32814]
[1742808069348,7.77625,2093.7,2093.3,10.14841172]
[1742808069741,3.0,2093.7,2093.4,4.77689]
[1742808069923,3.0,2093.7,2093.3,10.14841172]
[1742808070123,3.0,2093.7,2093.5,0.21352366]
[1742808070455,4.77691,2093.4,2093.3,4.608]
[1742808071134,7.77716,2093.3,2092.7,5.32968]
[1742808071330,3.0,2092.9,2092.4,9.38719]
[1742808071529,7.77816,2092.9,2092.4,9.38719]
[1742808071933,4.77838,2092.8,2092.4,4.608]
[1742808072128,4.77907,2092.5,2092.2,26.405]
[1742808072328,4.77907,2092.5,2092.2,31.013]
[1742808072557,3.0,2092.4,2092.2,31.013]
[1742808073729,7.77928,2092.4,2092.2,31.013]
[1742808073960,7.77942,2092.3,2092.2,26.405]
[1742808074368,3.0,2092.3,2092.2,26.405]
[1742808076067,3.0,2092.3,2092.2,26.60165783]
[1742808077869,3.7802,2092.7,2092.3,4.77928]
[1742808078171,8.55877,2092.7,2092.4,0.20045123]
[1742808078669,8.55877,2092.7,2092.5,0.20045123]
[1742808078842,13.33749,2092.7,2092.2,31.73583]
[1742808079042,3.0,2092.5,2092.3,0.20045123]
[1742808079242,3.0,2092.5,2092.2,26.405]
[1742808079243,7.779,2092.5,2092.2,26.405]
[1742808079440,4.333796,2092.5,2092.3,0.20045123]
[1742808079661,4.77937,2092.4,2092.2,26.405]
[1742808079969,3.0,2092.3,2092.2,26.405]
[1742808080646,7.77942,2092.3,2092.2,26.405]
[1742808080833,7.77942,2092.3,2091.8,6.71099777]
[1742808080834,12.55902,2092.3,2091.8,6.71099777]
[1742808081039,7.77942,2092.3,2091.9,4.609]
[1742808081372,4.7798,2092.2,2091.8,5.1602]
[1742808081574,4.7798,2092.2,2091.8,9.94072]
[1742808081768,4.77992,2092.1,2091.8,5.1602]
[1742808082072,4.77992,2092.1,2091.7,4.78069]
[1742808082369,5.58353,2092.0,2091.7,4.61]
[1742808082540,0.8032,2092.0,2091.6,26.9662]
[1742808082735,0.8032,2092.0,2091.6,36.35719]
[1742808082966,4.7802,2092.0,2091.6,31.5762]
[1742808083150,4.7802,2092.0,2091.2,6.01]
[1742808083151,4.78069,2091.8,2091.2,14.72496]
[1742808083349,4.7809,2091.7,2091.2,14.72496]
[1742808083737,9.56187,2091.7,2091.2,9.94304]
[1742808083940,5.5652,2091.7,2091.2,9.94304]
[1742808084167,4.78117,2091.6,2091.2,5.1612]
[1742808084339,4.78117,2091.6,2091.2,4.61]
[1742808084542,4.78138,2091.5,2091.2,4.61]
[1742808085045,4.78117,2091.6,2091.2,4.61]
[1742808085466,4.78126,2091.5,2091.2,4.61]
[1742808085773,7.78108,2091.6,2091.2,4.61]
[1742808086444,7.78108,2091.6,2091.2,9.39193]
[1742808086650,4.78135,2091.5,2091.2,4.61]
[1742808087369,3.8304,2091.3,2091.0,0.44257198]
[1742808087538,8.61222,2091.3,2091.0,0.44257198]
[1742808087742,5.61224,2091.3,2091.0,0.44257198]
[1742808088043,7.78196,2091.2,2091.0,0.44257198]
[1742808088467,3.0,2091.2,2091.0,0.44257198]
[1742808088777,3.0,2091.4,2091.2,10.11488]
[1742808089074,3.0,2091.4,2091.2,5.33302]
[1742808089376,3.0,2091.4,2091.2,0.5512]
[1742808089942,6.041195,2091.5,2091.2,0.5512]
[1742808090156,6.041195,2091.5,2091.2,5.75614542]
[1742808090358,6.041195,2091.5,2091.2,5.33299]
[1742808090561,6.041195,2091.5,2091.3,14.1742]
[1742808090955,6.041195,2091.5,2091.3,9.39257]
[1742808091156,6.041195,2091.5,2091.4,4.95927701]
[1742808091481,6.041195,2091.5,2091.4,0.17779701]
[1742808091655,6.041195,2091.5,2091.4,4.95927701]
[1742808091856,6.041195,2091.5,2091.4,0.17779701]
[1742808092652,3.0,2091.6,2091.4,0.17779701]
[1742808092852,9.420579,2091.6,2091.4,0.17779701]
[1742808093071,14.201749,2091.6,2091.3,4.611]
[1742808093599,7.78125,2091.5,2091.4,0.17779701]
[1742808093786,8.56155,2091.5,2091.4,0.17779701]
[1742808094473,12.56317,2091.4,2091.1,4.611]
[1742808094790,4.78173,2091.3,2091.1,4.611]
[1742808095178,7.78154,2091.4,2091.1,4.611]
[1742808095889,12.56322,2091.4,2091.1,4.611]
[1742808096187,7.78154,2091.4,2091.1,4.611]
[1742808096376,1.4982489,2091.4,2090.9,26.415]
[1742808096599,1.4982489,2091.4,2090.9,31.027]
[1742808096600,4.78209,2091.2,2090.9,31.027]
[1742808096765,4.78227,2091.1,2090.9,31.027]
[1742808097087,4.78247,2091.0,2090.7,5.2851867]
[1742808097299,5.60417,2091.0,2090.7,0.1229867]
[1742808097594,1.860344,2091.0,2090.7,0.1229867]
[1742808097798,3.0,2091.2,2090.9,4.78262]
[1742808098154,3.0,2091.2,2090.8,4.78275]
[1742808098155,7.78196,2091.2,2090.8,4.78275]
[1742808098369,7.78196,2091.2,2090.7,5.4571767]
[1742808098576,4.78225,2091.1,2090.7,5.4571467]
[1742808098970,12.56407,2091.2,2090.7,5.4570767]
[1742808099189,4.78221,2091.1,2090.7,5.4570767]
[1742808099799,9.56456,2091.1,2090.7,5.4570767]
[1742808099962,11.5072665,2091.1,2090.7,4.9058767]
[1742808100162,11.5072665,2091.1,2090.7,0.1229867]
[1742808100567,4.78241,2091.0,2090.7,0.1229867]
[1742808100771,3.0,2091.2,2090.8,0.5512]
[1742808100972,3.0,2091.2,2091.0,4.78237]
[1742808101190,3.0,2091.2,2090.9,4.78262]
[1742808101393,3.0,2091.3,2091.0,4.78228]
[1742808101791,3.0,2091.3,2091.0,9.39428]
[1742808101994,3.0,2091.3,2091.1,4.78212]
[1742808102310,3.0,2091.3,2091.0,9.39428]
[1742808102499,3.0,2091.3,2091.0,9.39427]
[1742808103262,3.0,2091.3,2091.0,9.4765589]
[1742808104560,6.041195,2091.6,2091.2,4.78193]
[1742808104865,3.0,2091.5,2091.2,4.78193]
[1742808105065,3.0,2091.5,2091.1,4.78213]
[1742808105296,3.0,2091.5,2091.1,4.8643689]
[1742808105467,3.0,2091.5,2091.1,9.6464089]
[1742808105787,3.0,2091.5,2091.1,9.6463189]
[1742808105994,7.78135,2091.5,2091.1,4.8642789]
[1742808106194,7.78135,2091.5,2091.2,0.18333716]
[1742808107391,3.0,2091.5,2091.2,0.26562606]
[1742808107574,3.0,2091.5,2091.2,5.04754606]
[1742808107893,7.78134,2091.5,2091.2,0.26562606]
[1742808108494,9.7233565,2091.5,2091.2,0.26562606]
[1742808111863,0.8245,2091.3,2091.2,0.26562606]
[1742808112068,5.60621,2091.3,2091.2,0.26562606]
[1742808113301,10.4849565,2091.5,2091.2,0.26562606]
[1742808113496,3.7616,2091.5,2091.2,5.04743606]
[1742808113898,3.0,2091.5,2091.2,0.81682606]
[1742808114110,7.78135,2091.5,2091.2,0.26562606]
[1742808115872,12.56276,2091.5,2091.2,0.26562606]
[1742808116074,9.114716,2091.5,2091.2,0.26562606]
[1742808117532,5.55173,2091.7,2091.2,0.26562606]
[1742808117725,3.0,2091.6,2091.3,4.78154]
[1742808118074,3.0,2091.6,2091.4,0.16770021]
[1742808118479,3.0,2091.6,2091.4,0.24998911]
[1742808119513,7.78107,2091.6,2091.4,0.24998911]
[1742808119878,12.56226,2091.6,2091.4,0.24998911]
[1742808120079,7.78125,2091.5,2091.4,0.24998911]
[1742808124241,8.60095,2091.5,2091.4,0.24998911]
[1742808124802,14.642145,2091.5,2091.4,0.24998911]
[1742808125423,14.642145,2091.5,2091.4,0.0822889]
[1742808125927,9.041195,2091.5,2091.4,0.22512704]
[1742808126385,13.822445,2091.5,2091.4,0.22512704]
[1742808127023,15.7580945,2091.5,2091.4,0.22512704]
[1742808127225,16.5403945,2091.5,2091.4,0.22512704]
[1742808128555,16.5403945,2091.5,2091.4,0.0822889]
[1742808129258,16.5403945,2091.5,2091.4,0.21430537]
[1742808129754,14.604745,2091.5,2091.4,0.21430537]
[1742808132369,14.604745,2091.5,2091.4,0.0822889]
[1742808132665,14.604745,2091.5,2091.4,0.21430537]
[1742808132866,14.604745,2091.5,2091.4,0.0822889]
[1742808133256,14.604745,2091.5,2091.4,0.21413971]
[1742808133455,17.0214045,2091.5,2091.4,0.0822889]
[1742808133766,17.0214045,2091.5,2091.4,0.21413971]
[1742808138267,9.041195,2091.5,2091.4,0.21413971]
[1742808138568,13.822445,2091.5,2091.4,0.21413971]
[1742808139774,14.609145,2091.5,2091.4,0.21413971]
[1742808144953,14.609145,2091.5,2091.4,0.18558869]
[1742808146381,14.609145,2091.5,2091.4,0.0822889]
[1742808146550,17.0262455,2091.5,2091.4,0.0822889]
[1742808147405,17.0262455,2091.5,2091.4,0.18558869]
[1742808149485,16.2395455,2091.5,2091.4,0.18558869]
[1742808151211,17.0574455,2091.5,2091.4,0.0822889]
[1742808151609,17.0574455,2091.5,2091.4,0.18521725]
[1742808151978,17.0574455,2091.5,2091.4,0.0822889]
[1742808158118,17.0574455,2091.5,2090.7,0.5512]
[1742808158119,4.78285,2090.8,2090.7,0.5512]
[1742808158622,4.78271,2090.9,2090.7,0.65553167]
[1742808158990,4.7824,2091.0,2090.7,5.43860167]
[1742808159187,7.78218,2091.1,2090.7,5.43860167]
[1742808159607,12.5645,2091.1,2090.7,5.43860167]
[1742808159928,4.78243,2091.0,2090.8,1.02219117]
[1742808160317,4.78243,2091.0,2090.9,0.1046619]
[1742808160514,3.0,2091.3,2091.2,4.78172]
[1742808160715,3.0,2091.4,2091.2,5.811092]
[1742808160916,3.0,2091.4,2091.2,1.13395134]
[1742808161428,4.78152,2091.4,2091.2,1.13395134]
[1742808161724,4.78171,2091.3,2091.2,1.13395134]
[1742808161926,7.78171,2091.3,2091.2,0.10457934]
[1742808162128,8.60461,2091.3,2091.2,0.10457934]
[1742808162430,4.78244,2091.0,2090.8,4.61]
[1742808162816,4.78275,2090.9,2090.6,5.1612]
[1742808163022,4.78275,2090.9,2090.6,9.399864]
[1742808163222,4.78275,2090.9,2090.6,5.1612]
[1742808163728,10.823445,2091.1,2090.7,4.78287]
[1742808163931,4.78242,2091.0,2090.8,0.5512]
[1742808164139,9.56496,2091.0,2090.8,0.5512]
[1742808164347,4.78262,2090.9,2090.8,0.5512]
[1742808165939,3.0,2091.0,2090.6,9.94438]
[1742808166143,7.78246,2091.0,2090.8,0.5512]
[1742808166444,7.7825,2091.0,2090.8,0.5512]
[1742808166607,7.7825,2091.0,2090.9,0.10363001]
[1742808168605,4.78285,2090.8,2090.7,0.994438]
[1742808168804,4.78285,2090.8,2090.7,1.09897601]
[1742808169843,4.78285,2090.8,2090.7,0.10453801]
[1742808170327,4.78285,2090.8,2090.5,0.5512]
[1742808170533,4.78285,2090.8,2090.7,0.10453801]
[1742808170728,4.78285,2090.8,2090.5,5.1612]
[1742808171034,4.78319,2090.7,2090.5,5.1612]
[1742808171235,4.78319,2090.7,2090.5,6.155705]
[1742808171432,4.78331,2090.6,2090.5,1.545705]
[1742808174139,4.78331,2090.6,2090.3,5.1612]
[1742808175018,3.0,2090.8,2090.3,5.1612]
[1742808175213,4.78346,2090.6,2090.3,9.277674]
[1742808175409,4.78361,2090.5,2090.3,9.277674]
[1742808177431,4.78377,2090.4,2090.3,0.5512]
[1742808178210,9.5677,2090.4,2090.1,5.1612]
[1742808178717,9.56771,2090.4,2090.1,5.1612]
[1742808179246,4.78377,2090.4,2090.1,5.1612]
[1742808179539,4.78377,2090.4,2090.1,0.5512]
[1742808179843,4.78377,2090.4,2090.2,1.012029]
[1742808180412,4.78377,2090.4,2090.1,5.1612]
[1742808180613,9.5677,2090.4,2090.1,5.1612]
[1742808180826,4.78377,2090.4,2090.1,5.1612]
[1742808181438,9.5677,2090.4,2090.2,0.10722201]
[1742808181642,4.78377,2090.4,2090.2,0.10722201]
[1742808182213,4.78377,2090.4,2090.2,1.59097121]
[1742808182613,9.5677,2090.4,2090.2,1.59097121]
[1742808182917,4.78377,2090.4,2090.2,1.59097121]
[1742808186145,9.56773,2090.4,2090.2,1.59097121]
[1742808186341,4.78377,2090.4,2090.2,1.59097121]
[1742808187146,4.784,2090.3,2090.2,1.59097121]
[1742808187345,7.784,2090.3,2090.2,0.10722201]
[1742808188109,7.8318295,2090.3,2090.2,0.10722201]
[1742808188315,4.78448,2090.1,2089.7,5.33649]
[1742808188512,3.0,2089.9,2089.3,0.1216306]
[1742808188717,3.0,2089.7,2089.3,0.1216306]
[1742808188916,10.825545,2090.2,2089.9,0.5512]
[1742808189126,7.78455,2090.1,2089.9,0.5512]
[1742808189317,3.7851,2090.3,2089.8,4.78512]
[1742808189540,4.78481,2090.0,2089.7,0.5512]
[1742808189719,4.78498,2089.9,2089.7,2.024452]
[1742808190944,4.78514,2089.8,2089.7,2.024452]
[1742808191150,4.78514,2089.8,2089.5,5.1612]
[1742808191348,4.78498,2089.9,2089.5,9.94702]
[1742808191536,4.7852,2089.8,2089.5,5.1612]
[1742808191758,4.7852,2089.8,2089.5,9.94699]
[1742808192122,4.7852,2089.8,2089.5,5.1612]
[1742808192664,4.7856,2089.6,2089.3,0.1216306]
[1742808192846,4.7856,2089.6,2089.3,3.31194266]
[1742808193349,4.78606,2089.4,2089.3,0.1216306]
[1742808194329,7.78606,2089.4,2089.3,0.1216306]
[1742808194662,8.61496,2089.4,2089.3,0.1216306]
[1742808195074,14.656155,2089.4,2089.3,0.1216306]
[1742808195226,13.827255,2089.4,2089.3,0.1216306]
[1742808196261,13.827255,2089.4,2089.3,0.2287584]
[1742808197469,5.28501699,2089.4,2089.3,5.5662484]
[1742808197651,4.78495,2089.9,2089.3,5.5662484]
[1742808197652,4.78479,2090.0,2089.6,4.7856]
[1742808197832,4.78493,2089.9,2089.6,5.33666]
[1742808198035,4.78514,2089.8,2089.7,0.10758263]
[1742808198548,7.78493,2089.9,2089.7,0.10758263]
[1742808198757,4.78527,2089.8,2089.4,5.33721]
[1742808198936,4.78527,2089.8,2089.5,0.65741678]
[1742808199136,4.78592,2089.5,2089.3,0.1216306]
[1742808199364,9.57194,2089.5,2089.3,0.1216306]
[1742808199533,4.78592,2089.5,2089.3,0.1216306]
[1742808200375,7.78606,2089.4,2089.3,0.1216306]
[1742808200950,8.57956,2089.4,2089.3,0.1216306]
[1742808202156,10.394668,2089.4,2089.3,0.1216306]
[1742808202772,7.78606,2089.4,2089.3,0.1216306]
[1742808203867,13.86547699,2089.4,2089.3,0.1216306]
[1742808204857,8.28501699,2089.4,2089.3,0.1216306]
[1742808205082,13.07107699,2089.4,2089.3,0.1216306]
[1742808205395,13.07107699,2089.4,2089.3,0.22424147]
[1742808209461,15.41089969,2089.4,2089.3,0.22424147]
[1742808209981,15.41089969,2089.4,2089.3,0.1216306]
[1742808210971,15.41089969,2089.4,2089.3,0.22415885]
[1742808211361,15.41089969,2089.4,2089.3,0.1216306]
[1742808212568,13.07107699,2089.4,2089.3,0.1216306]
[1742808212796,13.07107699,2089.4,2089.3,0.22428279]
[1742808215204,4.78593,2089.5,2089.3,0.22428279]
[1742808215401,4.78606,2089.4,2089.3,0.22428279]
[1742808218786,5.59646,2089.4,2089.3,0.22428279]
[1742808219804,4.78606,2089.4,2089.3,0.22428279]
[1742808220882,4.8338895,2089.4,2089.3,0.22428279]
[1742808221084,7.8338895,2089.4,2089.3,0.22428279]
[1742808221317,7.8338895,2089.4,2089.3,0.1216306]
[1742808221490,7.8338895,2089.4,2089.3,0.22271309]
[1742808222726,7.78606,2089.4,2089.3,0.22271309]
[1742808223098,4.78593,2089.5,2089.3,0.22271309]
[1742808223292,4.78555,2089.7,2089.3,0.22271309]
[1742808223514,9.57112,2089.7,2089.3,5.5648924]
[1742808223730,9.57109,2089.7,2089.3,5.5648924]
[1742808224050,4.78564,2089.6,2089.3,5.5648924]
[1742808224205,4.78564,2089.6,2089.3,0.7787624]
[1742808224523,9.57142,2089.6,2089.3,0.7787624]
[1742808224728,4.78564,2089.6,2089.4,0.96976757]
[1742808224936,9.5714,2089.6,2089.4,0.96976757]
[1742808225232,9.5714,2089.6,2089.5,0.10153685]
[1742808225398,4.78564,2089.6,2089.5,0.10153685]
[1742808226028,4.78564,2089.6,2089.5,0.45965918]
[1742808227629,4.78564,2089.6,2089.5,0.10153685]
[1742808228142,4.78539,2089.7,2089.5,1.07608731]
[1742808228746,4.78539,2089.7,2089.6,0.35812233]
[1742808229114,4.78539,2089.7,2089.6,0.45759412]
[1742808231246,4.78539,2089.7,2089.6,0.09947179]
[1742808237087,8.61419,2089.7,2089.6,0.09947179]
[1742808237595,4.78597,2089.5,2089.4,0.35782422]
[1742808239141,8.56636,2089.4,2089.3,1.08909118]
[1742808239345,8.56636,2089.4,2089.3,0.1216306]
[1742808239547,3.0,2089.4,2089.3,0.1216306]
[1742808239980,4.7855,2089.7,2089.4,0.5512]
[1742808240188,4.78583,2089.5,2089.4,0.5512]
[1742808240390,4.78583,2089.5,2089.3,0.1216306]
[1742808240542,4.78606,2089.4,2089.3,1.58224275]
[1742808240746,4.78606,2089.4,2089.3,0.47943466]
[1742808241169,4.78606,2089.4,2089.3,0.57103008]
[1742808242092,4.78583,2089.5,2089.3,0.57103008]
[1742808242093,7.7859,2089.5,2089.3,0.21322602]
[1742808242296,4.78606,2089.4,2089.3,0.21322602]
[1742808244307,10.322919,2089.4,2089.3,0.21322602]
[1742808244527,0.8011,2089.6,2089.3,0.21322602]
[1742808244681,7.78553,2089.7,2089.3,0.21322602]
[1742808244881,3.0,2089.5,2089.3,0.21322602]
[1742808245195,7.78596,2089.5,2089.3,0.21322602]
[1742808245408,10.07067699,2089.6,2089.3,0.21322602]
[1742808245409,10.07069699,2089.6,2089.4,0.35830795]
[1742808245580,4.78583,2089.5,2089.4,0.35830795]
[1742808245981,4.78583,2089.5,2089.4,0.44990337]
[1742808246823,10.07069699,2089.6,2089.4,0.44990337]
[1742808247125,10.07070699,2089.6,2089.4,1.04081677]
[1742808247419,14.85648699,2089.6,2089.4,1.04081677]
[1742808247622,5.28501699,2089.6,2089.4,1.04081677]
[1742808248221,10.07064699,2089.6,2089.5,0.35830795]
[1742808248796,10.07064699,2089.6,2089.5,0.44990337]
[1742808249881,5.28501699,2089.6,2089.5,0.44990337]
[1742808250082,5.28501699,2089.6,2089.5,6.29170411]
[1742808250307,5.28501699,2089.6,2089.5,6.84290411]
[1742808250816,5.28501699,2089.6,2089.5,2.05707411]
[1742808251027,4.78539,2089.7,2089.5,2.05707411]
[1742808251203,12.57063,2089.8,2089.5,2.05707411]
[1742808251396,7.78527,2089.8,2089.5,2.99671323]
[1742808251597,4.78409,2090.3,2089.7,0.5512]
[1742808251797,9.56828,2090.3,2089.9,4.78488]
[1742808251994,0.7811,2090.5,2089.8,9.94593]
[1742808251995,4.78472,2090.0,2089.8,4.70222376]
[1742808252207,4.78472,2090.0,2089.8,4.611]
[1742808252520,4.78472,2090.0,2089.9,0.09122376]
[1742808252883,4.78496,2089.9,2089.7,5.1622]
[1742808253186,4.78496,2089.9,2089.8,0.10709026]
[1742808253398,4.78496,2089.9,2089.7,4.611]
[1742808253823,4.78496,2089.9,2089.8,0.46539821]
[1742808255829,4.78474,2090.0,2089.8,0.46539821]
[1742808256326,3.0,2090.3,2089.9,5.33603]
[1742808256528,4.78425,2090.2,2089.9,5.33603]
[1742808257113,0.761,2090.4,2089.8,1.34448777]
[1742808257114,8.54491,2090.4,2089.8,1.34448777]
[1742808257319,4.78457,2090.1,2090.0,0.35830795]
[1742808258347,8.54498,2090.4,2090.0,0.35830795]
[1742808258515,7.7841,2090.3,2090.1,0.5512]
[1742808258847,7.7841,2090.3,2089.9,5.69440795]
[1742808259028,12.56829,2090.3,2089.9,5.69440795]
[1742808259232,4.78426,2090.2,2089.9,5.69440795]
[1742808259460,4.78426,2090.2,2089.9,7.20345075]
[1742808259970,4.78426,2090.2,2090.0,0.35830795]
[1742808260173,7.78408,2090.3,2090.0,0.35830795]
[1742808260349,12.56826,2090.3,2090.0,0.35830795]
[1742808261238,7.78408,2090.3,2089.9,11.6298228]
[1742808261439,7.78408,2090.3,2090.0,1.19881307]
[1742808261661,12.56825,2090.3,2090.0,1.19881307]
[1742808262279,12.56827,2090.3,2090.0,1.35121307]
[1742808262485,7.78408,2090.3,2090.0,1.70952102]
[1742808262657,12.56824,2090.3,2090.0,1.70952102]
[1742808263078,7.78408,2090.3,2090.0,1.70952102]
[1742808263283,12.56825,2090.3,2090.0,1.70952102]
[1742808263484,6.04051699,2090.8,2090.2,0.5512]
[1742808263784,5.28501699,2090.8,2090.4,0.5512]
[1742808264082,5.28501699,2090.8,2090.5,4.78354]
[1742808264281,5.28501699,2090.8,2090.5,9.93367729]
[1742808264660,5.28501699,2090.8,2090.5,5.15025729]
[1742808264981,9.56649,2090.7,2090.5,5.15025729]